Workbook

Sheet Sheet1
A1: ESTIMATE OF THE COLLECTION OF INFORMATION BURDEN TABLE
A2: Regulatory Section | B2: Information Collected | C2: Estimated Number of Respondents | D2: Annual Responses per Respondent | E2: Total Annual Responses | F2: Hours per Response | G2: Total Annual Burden Hours | H2: Previous Submission: Total Annual Burden Hours | I2: Difference Due to Adjustments | J2: Difference Due to Program Changes | K2: Reason for Difference (See also Narrative Statement)
A3: REPORTING BURDEN ESTIMATES
A4: Affected Public: Participating Households
A5: 274.6(b)(5) | B5: Reading Withhold Replacement Card Warning Notice | C5: 26424.20266 | D5: 1 | E5: =C5*D5 -> 26424.20266 | F5: =2/60 -> 0.03333333333 | G5: =E5*F5 -> 880.8067554 | H5: 506.5 | I5: =G5-H5 -> 374.3067554 | J5: 0 | K5: Although we estimate fewer total excesssive replacement EBT card requests, more States have opted to follow our regulations at 274.6(b)(5). This option requires more hours per response.
B6: Reading Replacement Card Withheld Notice and making contact with State agency | C6: =C5/2 -> 13212.10133 | D6: 1 | E6: =C6*D6 -> 13212.10133 | F6: =30/60 -> 0.5 | G6: =E6*F6 -> 6606.050665 | H6: 3790.5 | I6: =G6-H6 -> 2815.550665 | J6: 0
A7: 274.6(b)(6) | B7: Reading Excessive Replacement Card Notice | C7: =(238644-C5) -> 212219.7973 | D7: 1 | E7: 212219.7973 | F7: =2/60 -> 0.03333333333 | G7: =E7*F7 -> 7073.993245 | H7: 8441.85 | I7: -1367.856755 | J7: 0
A8: Subtotal Reporting: Participating Households | C8: =C5+C7 -> 238644 | D8: =E8/C8 -> 1.055363224 | E8: =SUM(E5:E7) -> 251856.1013 | F8: =G8/E8 -> 0.05781416685 | G8: =SUM(G5:G7) -> 14560.85067 | H8: =SUM(H5:H7) -> 12738.85 | I8: =SUM(I5:I7) -> 1822.000665 | J8: =SUM(J5:J7) -> 0 | K8: =SUM(K2:K4) -> 0
A9: Affected Public: State Agencies
A10: 274.6(b)(5) | B10: Withhold Replacement Card Warning Notice | C10: 6 | D10: =C5/C10 -> 4404.033777 | E10: =C10*D10 -> 26424.20266 | F10: =2/60 -> 0.03333333333 | G10: =E10*F10 -> 880.8067554 | H10: 506.5 | I10: =G10-H10 -> 374.3067554 | J10: 0 | K10: We estimate fewer burden hours for State agencies because of decreasd SNAP caseload and decreased excesssive replacement EBT card requests.
B11: Replacement Card Withheld Notice | C11: 6 | D11: =C5/2/C11 -> 2202.016888 | E11: =C11*D11 -> 13212.10133 | F11: =2/60 -> 0.03333333333 | G11: =E11*F11 -> 440.4033777 | H11: 253.2 | I11: =G11-H11 -> 187.2033777 | J11: 0
A12: 274.6(b)(6) | B12: Excessive Replacement Card Notice | C12: 47 | D12: =C7/C12 -> 4515.314837 | E12: =C12*D12 -> 212219.7973 | F12: =2/60 -> 0.03333333333 | G12: =E12*F12 -> 7073.993245 | H12: 8441.85 | I12: -1367.856755 | J12: 0
A13: Subtotal Reporting: State Agencies | C13: =C10+C12 -> 53 | D13: =E13/C13 -> 4752.001912 | E13: =SUM(E10:E12) -> 251856.1013 | F13: =G13/E13 -> 0.03333333333 | G13: =SUM(G10:G12) -> 8395.203378 | H13: =SUM(H10:H12) -> 9201.55 | I13: =SUM(I10:I12) -> -806.3466223 | J13: =SUM(J10:J12) -> 0 | K13: =SUM(K7:K9) -> 0
A15: GRAND SUBTOTAL | C15: =C13+C8 -> 238697 | D15: =+E15/C15 -> 2.110257786 | E15: =E13+E8 -> 503712.2027 | F15: =+G15/E15 -> 0.04557375009 | G15: =G13+G8 -> 22956.05404 | H15: =H13+H8 -> 21940.4 | I15: =I13+I8 -> 1015.654043 | J15: =J13+J8 -> 0

Sheet Sheet2
A1: CFR | B1: Title | C1: Number of Respondents | D1: Annual Reports | E1: Total Annual Responses | F1: Burden Hours per Response | G1: Total Burden Hours | H1: Hourly Cost to Respondent | I1: Cost to Respondent
A2: State Agencies
A3: 274.6(b)(5) | B3: Withhold Replacement Card Warning Notice | C3: 6 | D3: =C8/C3 -> 4404.033777 | E3: =D3*C3 -> 26424.20266 | F3: =2/60 -> 0.03333333333 | G3: =F3*E3 -> 880.8067554 | H3: 11.06 | I3: =H3*G3 -> 9741.722714
A4: 274.6(b)(5) | B4: Replacement Card Withheld Notice | C4: 6 | D4: =C9/C4 -> 2202.016888 | E4: =D4*C4 -> 13212.10133 | F4: =2/60 -> 0.03333333333 | G4: =F4*E4 -> 440.4033777 | H4: 11.06 | I4: =H4*G4 -> 4870.861357
A5: 274.6(b)(6) | B5: Excessive Replacement Card Notice | C5: 47 | D5: =C10/C5 -> 4515.314837 | E5: =D5*C5 -> 212219.7973 | F5: =2/60 -> 0.03333333333 | G5: 7073.993245 | H5: 11.06 | I5: 78238.36529
A6: Subtotal | C6: =SUM(C3+C5) -> 53 | D6: =(E6/C6) -> 4752.001912 | E6: =SUM(E3:E5) -> 251856.1013 | F6: 0.03 | G6: =SUM(G3:G5) -> 8395.203378 | I6: =SUM(I3:I5) -> 92850.94936
A7: Participating Households
A8: 274.6(b)(5) | B8: Reading Withhold Replacement Card Warning Notice | C8: 26424.20266 | D8: 1 | E8: =(D8*C8) -> 26424.20266 | F8: =(2/60) -> 0.03333333333 | G8: =E8*F8 -> 880.8067554 | H8: 7.25 | I8: =(H8*G8) -> 6385.848976
A9: 274.6(b)(5) | B9: Reading Replacement Card Withheld Notice and making contact with State agency | C9: =C8/2 -> 13212.10133 | D9: 1 | E9: =(D9*C9) -> 13212.10133 | F9: =(30/60) -> 0.5 | G9: =(F9*E9) -> 6606.050665 | H9: 7.25 | I9: =(H9*G9) -> 47893.86732
A10: 274.6(b)(6) | B10: Reading Excessive Replacement Card Notice | C10: =(238644-C8) -> 212219.7973 | D10: 1 | E10: 212219.7973 | F10: =(2/60) -> 0.03333333333 | G10: =(F10*E10) -> 7073.993245 | H10: 7.25 | I10: 51286.45102
A11: Subtotal | C11: =(C8+C10) -> 238644 | D11: =(E11/C11) -> 1.055363224 | E11: =SUM(E8:E10) -> 251856.1013 | F11: =G11/E11 -> 0.05781416685 | G11: =SUM(G8:G10) -> 14560.85067 | I11: =SUM(I8:I10) -> 105566.1673
A12: Grand Total | C12: =C6+C11 -> 238697 | D12: =+E12/C12 -> 2.110257786 | E12: =E6+E11 -> 503712.2027 | F12: =+G12/E12 -> 0.04557375009 | G12: =G6+G11 -> 22956.05404 | I12: =I11+I6 -> 198417.1167

Sheet 2023
A1: CFR | B1: Burden Activity | C1: Estimated Number of Respondents | D1: Estimated Responses per Respondent | E1: Estimated Total Annual Responses | F1: Estimated Hours per Response | G1: Estimated Total Annual Hours | H1: Hourly Cost to Respondent | I1: Estimated Cost to Respondent | J1: Fringe Benefits (x 0.33) | K1: With Fully Loaded Wages | M1: OMB Control Number 0584-0587, Expiration Date: XX/XX/XXXX
A2: State Agency Burden
A3: 274.6(b)(5) | B3: Withhold Replacement Card Warning Notice | C3: 6 | D3: =E3/C3 -> 6870.293333 | E3: 41221.76 | F3: 0.0334 | G3: =F3*E3 -> 1376.806784 | H3: 11.4 | I3: =H3*G3 -> 15695.59734 | J3: =I3*0.33 -> 5179.547121 | K3: =I3+J3 -> 20875.14446 | R3: 23.35
A4: 274.6(b)(5) | B4: Replacement Card Withheld Notice | C4: 6 | D4: =E4/C4 -> 3435.146667 | E4: =E3/2 -> 20610.88 | F4: 0.0334 | G4: =F4*E4 -> 688.403392 | H4: 11.4 | I4: =H4*G4 -> 7847.798669 | J4: =I4*0.33 -> 2589.773561 | K4: =I4+J4 -> 10437.57223 | R4: =R3/2 -> 11.675
A5: 274.6(b)(6) | B5: Excessive Replacement Card Notice | C5: 47 | D5: =E5/C5 -> 7043.895532 | E5: 331063.09 | F5: 0.0334 | G5: 11057.50721 | H5: 11.4 | I5: 126055.5821 | J5: 41598.34211 | K5: 167653.9243
A6: Subtotal | C6: =SUM(C3+C5) -> 53 | D6: =E6/C6 -> 7413.126981 | E6: =SUM(E3:E5) -> 392895.73 | F6: 0.0334 | G6: =SUM(G3:G5) -> 13122.71738 | H6: 11.4 | I6: 149598.9782 | J6: 49367.66279 | K6: =SUM(K3:K5) -> 198966.6409
A7: Household Burden
A8: 274.6(b)(5) | B8: Reading Withhold Replacement Card Warning Notice | C8: =E3 -> 41221.76 | D8: 1 | E8: =(D8*C8) -> 41221.76 | F8: 0.0334 | G8: =E8*F8 -> 1376.806784 | H8: 7.25 | I8: =H8*G8 -> 9981.849184 | J8: =I8*0.33 -> 3294.010231 | K8: =J8+I8 -> 13275.85941
A9: 274.6(b)(5) | B9: Reading Replacement Card Withheld Notice and making contact with State agency | C9: =C8/2 -> 20610.88 | D9: 1 | E9: =(D9*C9) -> 20610.88 | F9: =(30/60) -> 0.5 | G9: =(F9*E9) -> 10305.44 | H9: 7.25 | I9: =H9*G9 -> 74714.44 | J9: =I9*0.33 -> 24655.7652 | K9: =J9+I9 -> 99370.2052
A10: 274.6(b)(6) | B10: Reading Excessive Replacement Card Notice | C10: =E5 -> 331063.09 | D10: 1 | E10: 331063.09 | F10: 0.0334 | G10: =(F10*E10) -> 11057.50721 | H10: 7.25 | I10: 80166.92724 | J10: 26455.08599 | K10: 106622.0132
A11: Subtotal | C11: =C8+C10 -> 372284.85 | D11: =(E11/C11) -> 1.055363198 | E11: =SUM(E8:E10) -> 392895.73 | F11: =G11/E11 -> 0.05787732534 | G11: =SUM(G8:G10) -> 22739.75399 | H11: 7.25 | I11: 164863.2164 | J11: 54404.86142 | K11: =SUM(K8:K10) -> 219268.0778
A12: Grand Total | C12: =C6+C11 -> 372337.85 | D12: =E12/C12 -> 2.110425948 | E12: =E6+E11 -> 785791.46 | F12: =G12/E12 -> 0.04563866267 | G12: =G6+G11 -> 35862.47137 | I12: =I6+I11 -> 314462.1946 | J12: 103772.5242 | K12: =K11+K6 -> 418234.7188

Sheet Sheet3
A1: ESTIMATED ANNUAL BURDEN FOR 0584-0587 SUPPLEMENTAL NUTRITION
A2: ASSISTANCE PROGRAM: TRAFFICKING CONTROLS AND FRAUD, 7 CFR 274
A3: CFR | B3: Title | C3: Number of Respondents | D3: Annual Reports | E3: Total Annual Responses | F3: Burden Hours per Response | G3: Total Burden Hours | I3: Hourly Cost to Respondent | J3: Cost to Respondent
A4: Affected Public: State and Local Agencies
A5: 274.6(b)(5) | B5: Withhold Replacement Card Warning Notice | C5: 3 | D5: 5055 | E5: 15165 | F5: 0.0334 | H5: 506.5 | I5: 10.37 | J5: 5252.41
A6: 274.6(b)(5) | B6: Replacement Card Withheld Notice | C6: 3 | D6: 2,527,5 | E6: 7583 | F6: 0.0334 | H6: 253.2 | I6: 10.37 | J6: 2625.68
A7: 274.6(b)(6) | B7: Excessive Replacement Card Notice | C7: 50 | D7: 5055 | E7: 252750 | F7: 0.0334 | H7: 8441.85 | I7: 10.37 | J7: 87541.98
A8: Subtotal | C8: 53 | D8: 5198 | E8: 275498 | F8: 0.0334 | H8: 9201.55
J9: 95420.07
A10: Affected Public: Households
A11: 274.6(b)(5) | B11: Withhold Replacement Card Warning Notice | C11: 15165 | D11: 1 | E11: 15165 | F11: 0.0334 | H11: 506.5 | I11: 7.25 | J11: $3.672.13
A12: 274.6(b)(5) | B12: Replacement Card Withheld Notice | C12: 7,581[1] | D12: 1 | E12: 7581 | F12: 0.5 | H12: 3790.5 | I12: 7.25 | J12: 27481.13
A13: 274.6(b)(6) | B13: Excessive Replacement Card Notice | C13: 252750 | D13: 1 | E13: 252750 | F13: 0.0334 | H13: 8441.85 | I13: 7.25 | J13: 61203.41
A14: Subtotal | C14: 267915 | D14: 1 | E14: 275496 | F14: 0.0462 | H14: 12738.85 | J14: 92356.67
A15: Grand Total | C15: 267968 | D15: 5199 | E15: 550994 | F15: 0.0796 | H15: 21940.41 | J15: 187776.74
A18: [1] FNS estimates that out of 15,165 clients approximately 7,581 of these clients will be issued a notice stating that their replacement EBT card will be withheld in accordance to 7 CFR 274.6(b)(5). To avoid double counting these clients they are not included in the Grand Total of respondents.
